bitfinex/quotes_ETHUSD_20230110
["timestamp","ask_amount","ask_price","bid_price","bid_amount"]
[1673388716914,6.12785802,1339.2,1339.1,1.11195963]
[1673388717383,7.80120329,1339.2,1339.1,1.11195963]
[1673388717654,4.67002521,1339.2,1339.1,1.11195963]
[1673388717858,4.65602521,1339.2,1339.1,1.11195963]
[1673388718290,4.65602521,1339.2,1339.1,8.57965963]
[1673388718653,2.42546428,1339.2,1339.1,1.17795963]
[1673388718968,1.67334527,1339.2,1339.1,1.11195963]
[1673388719140,2.40858298,1339.2,1339.1,1.11195963]
[1673388720287,3.52343887,1339.2,1339.1,1.11195963]
[1673388720524,6.69322033,1339.2,1339.1,1.11195963]
[1673388720743,3.91702363,1339.2,1339.1,1.11195963]
[1673388720963,3.90502363,1339.2,1339.1,1.11195963]
[1673388721589,1.67360431,1339.2,1339.1,1.11195963]
[1673388724410,1.67360431,1339.2,1339.1,8.57965963]
[1673388724622,1.67360431,1339.2,1339.1,8.64565963]
[1673388725314,1.67360431,1339.2,1339.1,1.17795963]
[1673388725489,1.67360431,1339.2,1339.1,1.11195963]
[1673388726180,2.78942029,1339.2,1339.1,8.57965963]
[1673388726390,2.78942029,1339.2,1339.1,1.17795963]
[1673388726600,2.78942029,1339.2,1339.1,1.11195963]
[1673388741888,1.11581598,1339.2,1339.1,1.11195963]
[1673388743661,1.11581598,1339.2,1339.1,8.57965963]
[1673388743815,1.11581598,1339.2,1339.1,8.64565963]
[1673388744028,2.78942029,1339.2,1339.1,8.64565963]
[1673388744291,1.11581598,1339.2,1339.1,8.64565963]
[1673388746088,1.11581598,1339.2,1339.1,1.17795963]
[1673388746393,1.11581598,1339.2,1339.1,1.11195963]
[1673388747549,2.78942029,1339.2,1339.1,1.11195963]
[1673388748075,1.11581598,1339.2,1339.1,8.57965963]
[1673388748268,1.11581598,1339.2,1339.1,8.64565963]
[1673388752656,1.11623612,1339.2,1339.1,8.64565963]
[1673388752868,6.50499334,1339.3,1339.1,8.64565963]
[1673388753205,1.11623137,1339.2,1339.1,8.64565963]
[1673388755269,2.78983568,1339.2,1339.1,8.64565963]
[1673388756056,2.78983568,1339.2,1339.1,1.17795963]
[1673388756216,2.78983568,1339.2,1339.1,1.11195963]
[1673388757739,1.67360431,1339.2,1339.1,1.11195963]
[1673388757948,2.79036588,1339.2,1339.1,1.11195963]
[1673388758650,2.79036588,1339.2,1339.1,8.57965963]
[1673388759004,2.79036588,1339.2,1339.1,8.64565963]
[1673388759222,4.72314264,1339.3,1339.1,35.8801056]
[1673388759434,2.79041219,1339.3,1339.1,37.92491701]
[1673388759583,2.79041219,1339.3,1339.2,1.85305276]
[1673388759943,2.79041219,1339.3,1339.2,24.25447276]
[1673388760256,1.11690031,1339.3,1339.2,31.43260557]
[1673388760476,3.97102363,1339.4,1339.2,31.43260557]
[1673388760682,1.11691127,1339.3,1339.2,29.58277425]
[1673388761000,1.11690856,1339.3,1339.2,29.58277425]
[1673388761172,2.23329455,1339.3,1339.2,29.58277425]
[1673388761393,1.11690856,1339.3,1339.2,29.58277425]
[1673388761715,1.11690856,1339.3,1339.2,34.49851911]
[1673388761942,2.23333416,1339.3,1339.2,33.38043489]
[1673388762150,1.11690856,1339.3,1339.2,33.38043489]
[1673388766560,8.56e-06,1339.3,1339.2,37.26981023]
[1673388766822,8.56e-06,1339.3,1339.2,41.61789445]
[1673388771300,8.56e-06,1339.3,1339.2,40.49981023]
[1673388771760,8.56e-06,1339.3,1339.2,36.61043489]
[1673388771965,8.56e-06,1339.3,1339.2,33.83054208]
[1673388772139,8.56e-06,1339.3,1339.2,36.60979274]
[1673388773663,8.56e-06,1339.3,1339.2,33.60979274]
[1673388777862,8.56e-06,1339.3,1339.2,37.49091086]
[1673388778231,8.56e-06,1339.3,1339.2,33.60979274]
[1673388779078,8.56e-06,1339.3,1339.2,37.49091086]
[1673388779606,8.56e-06,1339.3,1339.2,33.60979274]
[1673388780167,8.56e-06,1339.3,1339.2,39.34371243]
[1673388783277,8.56e-06,1339.3,1339.2,35.46259431]
[1673388785956,8.56e-06,1339.3,1339.2,40.46179665]
[1673388788427,8.56e-06,1339.3,1339.2,39.34371243]
[1673388788859,8.56e-06,1339.3,1339.2,31.64081133]
[1673388789209,8.56e-06,1339.3,1339.2,27.30541826]
[1673388789425,8.56e-06,1339.3,1339.2,21.65488768]
[1673388789585,0.03397827,1339.3,1339.2,21.65488768]
[1673388794092,0.03396971,1339.3,1339.2,21.65488768]
[1673388801461,2.79002991,1339.4,1339.2,21.65488768]
[1673388801716,3.35479483,1339.4,1339.2,21.65488768]
[1673388805939,3.35479483,1339.4,1339.2,14.18774768]
[1673388806237,1.1164256,1339.3,1339.2,6.72060768]
[1673388806924,1.1164256,1339.3,1339.2,14.18774768]
[1673388807136,1.1164256,1339.3,1339.2,21.65488768]
[1673388807396,1.1164256,1339.3,1339.2,14.18774768]
[1673388807702,1.1164256,1339.3,1339.2,7.53314]
[1673388807703,3.38210939,1339.3,1339.2,7.53314]
[1673388807931,3.38210939,1339.3,1339.2,0.066]
[1673388808173,3.38210939,1339.3,1339.1,15.00052]
[1673388808282,3.38210939,1339.3,1339.1,22.46782]
[1673388808493,1.70850508,1339.3,1339.1,22.46782]
[1673388814316,1.70850508,1339.3,1339.1,7.53322]
[1673388814732,0.17085051,1339.2,1339.1,7.53322]
[1673388814946,1.70850508,1339.3,1339.1,7.53322]
[1673388815780,3.38210939,1339.3,1339.1,0.066]
[1673388816066,2.5,1339.2,1339.0,15.11606792]
[1673388816226,3.6164256,1339.2,1339.0,22.58395792]
[1673388820514,5.29002991,1339.2,1339.0,22.58395792]
[1673388820727,6.32198278,1339.2,1339.0,15.11606792]
[1673388821086,4.64837847,1339.2,1339.0,7.64824792]
[1673388821389,4.63437847,1339.2,1339.0,15.11649792]
[1673388822687,4.63437847,1339.2,1339.0,7.64824792]
[1673388822900,4.63437847,1339.2,1339.0,7.64268705]
[1673388823124,4.63437847,1339.2,1339.0,0.17487705]
[1673388823377,4.63437847,1339.2,1339.0,7.57709705]
[1673388823378,0.46343785,1339.1,1339.0,7.57709705]
[1673388823689,4.70037847,1339.2,1339.0,7.64309705]
[1673388823842,4.63437847,1339.2,1339.0,7.64309705]
[1673388826100,4.63437847,1339.2,1339.0,0.17487705]
[1673388826307,6.30798278,1339.2,1339.0,0.10887705]
[1673388826520,0.63079828,1339.1,1339.0,0.10532597]
[1673388827307,0.63079828,1339.1,1339.0,7.57357597]
[1673388827685,0.63079828,1339.1,1339.0,7.63957597]
[1673388828276,0.63079828,1339.1,1339.0,15.10782597]
[1673388830355,3.42082819,1339.1,1339.0,0.17132597]
[1673388830566,3.42082819,1339.1,1339.0,0.10532597]
[1673388831033,3.98122819,1339.1,1339.0,0.10532597]
[1673388831411,2.86480259,1339.1,1339.0,0.10532597]
[1673388831623,3.97970462,1339.1,1339.0,0.10532597]
[1673388832926,2.30610031,1339.1,1339.0,0.10532597]
[1673388834418,3.97970462,1339.1,1339.0,0.10532597]
[1673388835456,2.30610031,1339.1,1339.0,0.10532597]
[1673388837403,3.97970462,1339.1,1339.0,0.10532597]
[1673388839185,2.30610031,1339.1,1339.0,0.10532597]
[1673388839817,3.97970462,1339.1,1339.0,0.10532597]
[1673388840343,7.77736526,1339.1,1339.0,0.10532597]
[1673388840556,34.48697883,1339.1,1339.0,0.10532597]
[1673388840781,17.87207999,1339.1,1339.0,0.10532597]
[1673388840994,25.33977999,1339.1,1339.0,0.10532597]
[1673388841222,22.55157883,1339.1,1339.0,0.10532597]
[1673388841429,11.21439725,1339.1,1339.0,0.10532597]
[1673388841654,10.98439725,1339.1,1339.0,0.10532597]
[1673388842236,12.65639532,1339.1,1339.0,0.10532597]
[1673388842443,8.85873468,1339.1,1339.0,0.10532597]
[1673388842710,5.85873468,1339.1,1339.0,0.10532597]
[1673388843320,4.18673661,1339.1,1339.0,0.10532597]
[1673388843523,3.61433661,1339.1,1339.0,0.10532597]
[1673388843844,5.28613238,1339.1,1339.0,0.10532597]
[1673388844021,5.29813238,1339.1,1339.0,0.10532597]
[1673388844810,20.23353238,1339.1,1339.0,0.10532597]
[1673388845174,12.76583238,1339.1,1339.0,0.10532597]
[1673388846138,5.29813238,1339.1,1339.0,0.10532597]
[1673388846561,12.76583238,1339.1,1339.0,0.10532597]
[1673388846780,5.29813238,1339.1,1339.0,0.10532597]
[1673388846982,4.54601337,1339.1,1339.0,0.10532597]
[1673388847188,4.53401337,1339.1,1339.0,0.10532597]
[1673388847638,19.46941337,1339.1,1339.0,0.10532597]
[1673388847851,26.94911337,1339.1,1339.0,0.10532597]
[1673388848166,15.81137401,1339.1,1339.0,0.10532597]
[1673388848382,24.26119302,1339.1,1339.0,0.10532597]
[1673388848596,16.79349302,1339.1,1339.0,0.10532597]
[1673388848803,9.32579302,1339.1,1339.0,0.10532597]
[1673388849847,10.82579302,1339.1,1339.0,0.10532597]
[1673388850221,10.82579302,1339.1,1339.0,0.102546]
[1673388850933,8.92399725,1339.1,1339.0,0.102546]
[1673388851250,9.09592759,1339.1,1339.0,0.102546]
[1673388851589,11.09592759,1339.1,1339.0,0.102546]
[1673388851830,9.09592759,1339.1,1339.0,0.102546]
[1673388852442,9.09592759,1339.1,1339.0,7.570796]
[1673388852443,6.86450827,1339.1,1339.0,7.570796]
[1673388852660,6.86450827,1339.1,1339.0,0.168546]
[1673388852874,6.11238926,1339.1,1339.0,0.102546]
[1673388853121,6.86450827,1339.1,1339.0,0.102546]
[1673388854638,9.09592759,1339.1,1339.0,0.102546]
[1673388855090,10.59592759,1339.1,1339.0,0.102546]
[1673388855301,9.09592759,1339.1,1339.0,0.102546]
[1673388856156,16.56362759,1339.1,1339.0,0.102546]
[1673388856591,9.09592759,1339.1,1339.0,0.102546]
[1673388857795,4.18239426,1339.1,1339.0,0.102546]
[1673388857998,4.17039426,1339.1,1339.0,0.102546]
[1673388858241,3.05484763,1339.1,1339.0,0.102546]
[1673388858538,17.99024763,1339.1,1339.0,0.102546]
[1673388858755,18.00224763,1339.1,1339.0,0.102546]
[1673388859279,20.23366695,1339.1,1339.0,0.102546]
[1673388859628,20.23035675,1339.1,1339.0,0.102546]
[1673388860017,15.26265675,1339.1,1339.0,0.102546]
[1673388860439,20.23035675,1339.1,1339.0,0.102546]
[1673388861076,27.69805675,1339.1,1339.0,0.102546]
[1673388861317,26.02612641,1339.1,1339.0,0.102546]
[1673388861531,27.6999808,1339.1,1339.0,0.102546]
[1673388862407,26.02612641,1339.1,1339.0,0.102546]
[1673388862989,27.70017686,1339.1,1339.0,0.102546]
[1673388863229,26.02612641,1339.1,1339.0,0.102546]
[1673388865051,28.06220856,1339.1,1339.0,0.102546]
[1673388868980,25.83078924,1339.1,1339.0,0.102546]
[1673388874377,26.58290825,1339.1,1339.0,0.102546]
[1673388874538,29.58290825,1339.1,1339.0,0.102546]
[1673388876744,26.79470709,1339.1,1339.0,0.102546]
[1673388878061,30.14102081,1339.1,1339.0,0.102546]
[1673388878658,33.93868145,1339.1,1339.0,0.102546]
[1673388879489,33.93868145,1339.1,1339.0,0.09973973]
[1673388879701,38.93868145,1339.1,1339.0,0.09973973]
[1673388884573,39.49908145,1339.1,1339.0,0.09973973]
[1673388884788,50.15276773,1339.1,1339.0,0.09973973]
[1673388885834,45.15276773,1339.1,1339.0,0.09973973]
[1673388886005,45.15276773,1339.1,1339.0,0.04973973]
[1673388886686,50.15276773,1339.1,1339.0,0.04973973]
[1673388890349,53.49908145,1339.1,1339.0,0.04973973]
[1673388890729,57.36894745,1339.1,1339.0,0.04973973]
[1673388891303,50.15276773,1339.1,1339.0,0.04973973]
[1673388894663,57.36894745,1339.1,1339.0,0.04973973]
[1673388898334,52.36894745,1339.1,1339.0,0.04973973]
[1673388899153,57.36894745,1339.1,1339.0,0.04973973]
[1673388900674,53.49908145,1339.1,1339.0,0.04973973]
[1673388901793,57.36894745,1339.1,1339.0,0.04973973]
[1673388902457,57.59894745,1339.1,1339.0,0.04973973]
[1673388903285,57.59894745,1339.1,1339.0,9.73e-06]
[1673388903503,61.72033373,1339.1,1338.9,5.77e-06]
[1673388903714,29.87524,1338.9,1338.8,0.11926944]
[1673388903878,40.90344027,1338.9,1338.8,0.11926944]
[1673388904093,37.78569328,1338.9,1338.8,0.11926944]
[1673388904331,26.96820965,1338.9,1338.8,0.11926944]
[1673388904540,30.58128745,1338.9,1338.8,0.11926944]
[1673388904866,33.37074003,1338.9,1338.8,0.11926944]
[1673388905269,33.3707505,1338.9,1338.8,0.11926944]
[1673388909961,47.3707505,1338.9,1338.8,0.11926944]
[1673388910388,55.9311505,1338.9,1338.8,0.11926944]
[1673388910957,60.0310165,1338.9,1338.8,0.11926944]
[1673388912719,61.71555345,1338.9,1338.8,0.11926944]
[1673388913396,65.06422708,1338.9,1338.8,0.11926944]
[1673388915547,57.84568745,1338.9,1338.8,0.11926944]
[1673388915763,61.71555345,1338.9,1338.8,0.11926944]
[1673388916527,64.50422599,1338.9,1338.8,0.11926944]
[1673388916686,61.71555345,1338.9,1338.8,0.11926944]
[1673388917531,65.06422708,1338.9,1338.8,0.11926944]
[1673388919437,48.46054099,1338.9,1338.8,0.11926944]
[1673388919646,48.45688973,1338.9,1338.8,0.11926944]
[1673388919843,50.68731635,1338.9,1338.8,0.11926944]
[1673388920061,58.15612635,1338.9,1338.8,0.11926944]
[1673388920948,56.15569973,1338.9,1338.8,0.11926944]
[1673388921645,58.38639487,1338.9,1338.8,0.11926944]
[1673388921854,60.02556573,1338.9,1338.8,0.11926944]
[1673388922064,48.68688973,1338.9,1338.8,0.11926944]
[1673388922289,52.55675573,1338.9,1338.8,0.11926944]
[1673388922832,48.68688973,1338.9,1338.8,0.11926944]
[1673388923149,60.02556573,1338.9,1338.8,0.11926944]
[1673388923363,52.55675573,1338.9,1338.8,0.11926944]
[1673388924040,48.68688973,1338.9,1338.8,0.11926944]
[1673388924464,56.15569973,1338.9,1338.8,0.11926944]
[1673388924936,48.68688973,1338.9,1338.8,0.11926944]
[1673388925146,56.15569973,1338.9,1338.8,0.11926944]
[1673388925471,48.68688973,1338.9,1338.8,0.11926944]
[1673388925694,65.06057582,1338.9,1338.8,0.11926944]
[1673388925847,72.90657582,1338.9,1338.8,0.11926944]
[1673388926220,49.24789982,1338.9,1338.8,0.11926944]
[1673388926423,60.58657582,1338.9,1338.8,0.11926944]
[1673388926631,56.71670982,1338.9,1338.8,0.11926944]
[1673388926951,53.36803619,1338.9,1338.8,0.11926944]
[1673388928283,57.23790219,1338.9,1338.8,0.11926944]
[1673388928711,61.71190219,1338.9,1338.8,0.11926944]
[1673388929340,54.24309219,1338.9,1338.8,0.11926944]
[1673388929650,45.89922619,1338.9,1338.8,0.11926944]
[1673388929859,49.76909219,1338.9,1338.8,0.11926944]
[1673388930069,57.23790219,1338.9,1338.8,0.11926944]
[1673388931317,26.42273844,1338.9,1338.8,0.11926944]
[1673388931685,26.714395,1338.9,1338.8,0.11926944]
[1673388932473,21.714395,1338.9,1338.8,0.11926944]
[1673388933150,23.04092284,1338.9,1338.8,0.11926944]
[1673388933339,24.71465872,1338.9,1338.8,0.11926944]
[1673388934362,23.04092284,1338.9,1338.8,0.11926944]
[1673388936784,23.79304185,1338.9,1338.8,0.11926944]
[1673388940610,26.58182032,1338.9,1338.8,0.11926944]
[1673388940818,23.79304185,1338.9,1338.8,0.11926944]
[1673388941222,23.79304185,1338.9,1338.8,0.11608247]
[1673388942936,23.04092284,1338.9,1338.8,0.11608247]
[1673388943113,23.79304185,1338.9,1338.8,0.11608247]
[1673388946997,23.04092284,1338.9,1338.8,0.11608247]
[1673388947192,17.91690931,1338.9,1338.8,7.58545247]
[1673388947412,1.68564711,1338.9,1338.8,9.91157904]
[1673388947658,2.78946198,1338.9,1338.8,9.91157904]
[1673388948060,2.78946198,1338.9,1338.8,17.38094904]
[1673388948243,2.78946198,1338.9,1338.8,9.91157904]
[1673388949107,2.78946198,1338.9,1338.8,2.44220904]
[1673388949448,2.78946198,1338.9,1338.8,2.37620904]
[1673388952559,2.78946198,1338.9,1338.8,17.31494904]
[1673388952769,1.11581487,1338.9,1338.8,17.38094904]
[1673388953011,1.11581487,1338.9,1338.8,7.65145247]
[1673388953211,1.11581487,1338.9,1338.8,0.18208247]
[1673388953389,1.11581487,1338.9,1338.8,0.11608247]
[1673388953970,2.78946198,1338.9,1338.8,0.11608247]
[1673388955437,1.11581487,1338.9,1338.8,0.11608247]
[1673388956545,2.78946198,1338.9,1338.8,0.11608247]
[1673388956823,1.11581487,1338.9,1338.8,0.11608247]
[1673388959480,2.78946198,1338.9,1338.8,0.11608247]
[1673388962015,1.11581487,1338.9,1338.8,0.11608247]
[1673388964005,1.11581487,1338.9,1338.8,0.11330541]
[1673388967283,2.78946198,1338.9,1338.8,0.11330541]
[1673388967502,1.11581487,1338.9,1338.8,0.11330541]
[1673388967895,2.78946198,1338.9,1338.8,0.11330541]
[1673388968969,2.78946198,1338.9,1338.8,7.58267541]
[1673388969192,2.78946198,1338.9,1338.8,7.64867541]
[1673388971419,1.67364711,1338.9,1338.8,0.17930541]
[1673388971613,4.72979779,1338.9,1338.8,0.11330541]
[1673388972360,1.67364711,1338.9,1338.8,0.11330541]
[1673388973937,3.90490931,1338.9,1338.8,0.11330541]
[1673388977569,5.02004067,1338.9,1338.8,0.11330541]
[1673388977775,28.19058968,1338.9,1338.8,0.11330541]
[1673388978036,20.72177968,1338.9,1338.8,0.11330541]
[1673388978245,18.38236965,1338.9,1338.8,0.11330541]
[1673388979041,10.91355965,1338.9,1338.8,0.11330541]
[1673388983133,10.91555965,1338.9,1338.8,0.11330541]
[1673388983324,10.91355965,1338.9,1338.8,0.11330541]
[1673388983517,14.71122029,1338.9,1338.8,0.11330541]
[1673388986900,13.95910128,1338.9,1338.8,0.11330541]
[1673388987122,14.71122029,1338.9,1338.8,0.11330541]
[1673388987313,10.91355965,1338.9,1338.8,0.11330541]
[1673388988409,10.91355965,1338.9,1338.8,0.11026519]
[1673388990883,8.12478118,1338.9,1338.8,0.11026519]
[1673388996460,10.91355965,1338.9,1338.8,0.11026519]
[1673388997197,7.37266217,1338.9,1338.8,0.11026519]
[1673388997628,10.16144064,1338.9,1338.8,0.11026519]
[1673388998620,7.37266217,1338.9,1338.8,0.11026519]
[1673388998833,10.16144064,1338.9,1338.8,0.11026519]
[1673388999159,10.91355965,1338.9,1338.8,0.11026519]
[1673389003251,10.91304457,1338.9,1338.8,0.11026519]
[1673389003571,8.68229745,1338.9,1338.8,0.11026519]
[1673389005244,10.91289868,1338.9,1338.8,0.11026519]
[1673389005618,8.68229745,1338.9,1338.8,0.11026519]
[1673389005845,10.91301425,1338.9,1338.8,0.11026519]
[1673389006615,29.64829489,1338.9,1338.8,0.11026519]
[1673389006923,27.41757809,1338.9,1338.8,0.11026519]
[1673389007300,34.88638809,1338.9,1338.8,0.11026519]
[1673389009498,34.88638809,1338.9,1338.8,0.10810501]
[1673389010389,27.41757809,1338.9,1338.8,0.10810501]
[1673389011374,19.94876809,1338.9,1338.8,0.10810501]
[1673389012083,30.41757809,1338.9,1338.8,0.10810501]
[1673389013544,42.31614925,1338.9,1338.8,0.10810501]
[1673389013663,43.10654925,1338.9,1338.8,0.10810501]
[1673389014668,48.10654925,1338.9,1338.8,0.10810501]
[1673389016850,47.35443024,1338.9,1338.8,0.10810501]
[1673389017274,48.10654925,1338.9,1338.8,0.10810501]
[1673389017604,44.23668325,1338.9,1338.8,0.10810501]
[1673389018631,48.10654925,1338.9,1338.8,0.10810501]
[1673389019808,44.23668325,1338.9,1338.8,0.10810501]
[1673389020702,39.23668325,1338.9,1338.8,0.10810501]
[1673389020907,44.23668325,1338.9,1338.8,0.10810501]
[1673389021595,40.88800962,1338.9,1338.8,0.10810501]
[1673389024018,44.23668325,1338.9,1338.8,0.10810501]
[1673389024534,40.88800962,1338.9,1338.8,0.10810501]
[1673389025120,44.75787562,1338.9,1338.8,0.10810501]
[1673389025486,48.10654925,1338.9,1338.8,0.10810501]
[1673389027064,43.10654925,1338.9,1338.8,0.10810501]
[1673389027649,39.75787562,1338.9,1338.8,0.10810501]
[1673389027866,35.88800962,1338.9,1338.8,0.10810501]
[1673389028081,40.88800962,1338.9,1338.8,0.10810501]
[1673389028388,48.10654925,1338.9,1338.8,0.10810501]
[1673389028824,44.23668325,1338.9,1338.8,0.10810501]
[1673389029023,19.7248588,1338.9,1338.8,0.10810501]
[1673389029236,29.51392979,1338.9,1338.8,0.10810501]
[1673389029447,34.75400784,1338.9,1338.8,0.10810501]
[1673389030625,30.51519784,1338.9,1338.8,0.10810501]
[1673389030873,37.98400784,1338.9,1338.8,0.10810501]
[1673389031026,32.98400784,1338.9,1338.8,0.10810501]
[1673389031457,37.3921158,1338.9,1338.8,0.10604692]
[1673389032618,36.63999679,1338.9,1338.8,0.10604692]
[1673389033245,37.3921158,1338.9,1338.8,0.10604692]
[1673389034524,40.74078943,1338.9,1338.8,0.10604692]
[1673389039374,44.61065543,1338.9,1338.8,0.10604692]
[1673389039947,40.74078943,1338.9,1338.8,0.10604692]
[1673389041963,41.30118943,1338.9,1338.8,0.10604692]
[1673389042396,33.83237943,1338.9,1338.8,0.10604692]
[1673389043669,41.30118943,1338.9,1338.8,0.10604692]
[1673389044632,45.17105543,1338.9,1338.8,0.10604692]
[1673389044823,41.30118943,1338.9,1338.8,0.10604692]
[1673389045912,41.30318943,1338.9,1338.8,0.10604692]
[1673389046256,46.30118943,1338.9,1338.8,0.10604692]
[1673389050965,45.54907042,1338.9,1338.8,0.10604692]
[1673389051132,46.30118943,1338.9,1338.8,0.10604692]
[1673389051584,42.9525158,1338.9,1338.8,0.10604692]
[1673389051979,33.82907907,1338.9,1338.8,0.10604692]
[1673389052209,41.29788907,1338.9,1338.8,0.10604692]
[1673389052709,33.26867907,1338.9,1338.8,0.10604692]
[1673389052917,33.03867907,1338.9,1338.8,0.10604692]
[1673389055908,33.03867907,1338.9,1338.8,0.10394875]
[1673389056089,40.50748907,1338.9,1338.8,0.10394875]
[1673389056790,41.06788907,1338.9,1338.8,0.10394875]
[1673389057787,41.06788907,1338.9,1338.8,0.07967797]
[1673389058482,46.06788907,1338.9,1338.8,0.07967797]
[1673389059667,42.7225158,1338.9,1338.8,0.07967797]
[1673389059826,42.7225158,1338.9,1338.8,0.05539443]
[1673389060479,46.0675292,1338.9,1338.8,0.05539443]
[1673389060712,46.0675292,1338.9,1338.8,0.03111223]
[1673389061124,49.9373952,1338.9,1338.8,0.03111223]
[1673389061335,42.7225158,1338.9,1338.8,0.03111223]
[1673389061894,42.7225158,1338.9,1338.8,0.00683003]
[1673389062189,46.5923818,1338.9,1338.8,0.00683003]
[1673389062625,50.49610384,1338.9,1338.8,0.00683003]
[1673389062776,50.72610384,1338.9,1338.6,0.12907254]
[1673389062988,16.78733036,1338.7,1338.6,0.12907254]
[1673389063190,28.066921,1338.7,1338.6,0.12907254]
[1673389064456,20.596991,1338.7,1338.6,0.12907254]
[1673389065087,28.066921,1338.7,1338.6,0.12907254]
[1673389065297,33.54722922,1338.7,1338.6,0.12907254]
[1673389067672,41.01715922,1338.7,1338.6,0.12907254]
[1673389070580,41.01715922,1338.7,1338.6,0.07907254]
[1673389071818,33.54722922,1338.7,1338.6,0.07907254]
[1673389072016,28.066921,1338.7,1338.6,0.07907254]
[1673389072434,30.29532709,1338.7,1338.6,0.07907254]
[1673389072776,2.24040609,1338.7,1338.6,0.07907254]
[1673389072944,3.89979031,1338.7,1338.6,0.07907254]
[1673389074044,3.89979031,1338.7,1338.6,0.02907254]
[1673389074409,1.67138422,1338.7,1338.6,0.02907254]
[1673389078034,2.78570692,1338.7,1338.6,0.02907254]
[1673389078246,1.67138422,1338.7,1338.6,0.02907254]
[1673389080240,2.7856508,1338.7,1338.6,0.02907254]
[1673389080910,1.67138422,1338.7,1338.6,0.02907254]
[1673389083820,3.89979031,1338.7,1338.6,0.02907254]
[1673389084063,1.67138422,1338.7,1338.6,0.02907254]
[1673389084501,3.89979031,1338.7,1338.6,0.02907254]
[1673389086023,1.67138422,1338.7,1338.6,0.02907254]
[1673389089386,3.89979031,1338.7,1338.6,0.02907254]
[1673389090279,1.67138422,1338.7,1338.6,0.02907254]
[1673389090650,3.89979031,1338.7,1338.6,0.02907254]
[1673389092026,1.67138422,1338.7,1338.6,0.02907254]
[1673389092444,3.89979031,1338.7,1338.6,0.02907254]
[1673389093836,2.22840609,1338.7,1338.6,0.02907254]
[1673389094644,9.69833609,1338.7,1338.6,0.02907254]
[1673389094889,16.1363761,1338.7,1338.6,0.02907254]
[1673389096172,16.1363761,1338.7,1338.6,0.02612008]
[1673389096323,8.6664461,1338.7,1338.6,0.02612008]
[1673389096533,16.1363761,1338.7,1338.6,0.02612008]
[1673389098477,8.6664461,1338.7,1338.6,0.02612008]
[1673389098898,5.87911574,1338.7,1338.6,0.02612008]
[1673389099126,5.87631605,1338.7,1338.6,0.02612008]
[1673389100599,8.66364641,1338.7,1338.6,0.02612008]
[1673389100776,5.87631605,1338.7,1338.6,0.02612008]
[1673389100993,8.66364641,1338.7,1338.6,0.02612008]
[1673389101334,5.87631605,1338.7,1338.6,0.02612008]
[1673389102561,13.34624605,1338.7,1338.6,0.02612008]
[1673389103820,5.87631605,1338.7,1338.6,0.02612008]
[1673389104022,2.2376064,1338.7,1338.6,0.02612008]
[1673389104232,2.2256064,1338.7,1338.6,0.02612008]
[1673389104498,9.6955364,1338.7,1338.6,0.02612008]
[1673389104646,9.7075364,1338.7,1338.6,0.02612008]
[1673389105277,2.2376064,1338.7,1338.6,0.02612008]
[1673389105526,2.2256064,1338.7,1338.6,0.02612008]
[1673389106575,9.6955364,1338.7,1338.6,0.02612008]
[1673389106748,9.7075364,1338.7,1338.6,0.02612008]
[1673389106955,12.49486676,1338.7,1338.6,0.02612008]
[1673389107184,5.02493676,1338.7,1338.6,0.02612008]
[1673389107862,15.38629944,1338.7,1338.6,0.02612008]
[1673389108042,12.59896908,1338.7,1338.6,0.02612008]
[1673389108382,15.94679944,1338.7,1338.6,0.02612008]
[1673389108744,15.38629944,1338.7,1338.6,0.02612008]
[1673389112649,7.91636944,1338.7,1338.6,0.02612008]
[1673389117149,21.91636944,1338.7,1338.6,0.02612008]
[1673389118530,19.69076304,1338.7,1338.6,0.02612008]
[1673389119297,21.92030389,1338.7,1338.6,0.02612008]
[1673389119793,29.39023389,1338.7,1338.6,0.02612008]
[1673389119999,29.39023389,1338.7,1338.6,0.02297307]
[1673389120831,27.16069304,1338.7,1338.6,0.02297307]
[1673389121407,29.3903687,1338.7,1338.6,0.02297307]
[1673389121577,27.16069304,1338.7,1338.6,0.02297307]
[1673389122870,19.69076304,1338.7,1338.6,0.02297307]
[1673389127487,27.16069304,1338.7,1338.6,0.02297307]
[1673389129454,19.69076304,1338.7,1338.6,0.02297307]
[1673389133438,20.25126304,1338.7,1338.6,0.02297307]
[1673389133881,38.98878368,1338.7,1338.6,0.02297307]
[1673389134330,31.51885368,1338.7,1338.6,0.02297307]
[1673389134488,36.58350833,1338.7,1338.6,0.02297307]
[1673389134704,36.05843876,1338.7,1338.6,0.02297307]
[1673389134912,28.35850876,1338.7,1338.6,0.02297307]
[1673389135123,32.48364233,1338.7,1338.6,0.02297307]
[1673389135347,50.76829876,1338.7,1338.6,0.02297307]
[1673389135570,43.29836876,1338.7,1338.6,0.02297307]
[1673389135918,27.79975052,1338.7,1338.6,0.02297307]
[1673389136280,35.26968052,1338.7,1338.6,0.02297307]
[1673389137149,32.48364233,1338.7,1338.6,0.02297307]
[1673389137360,39.95357233,1338.7,1338.6,0.02297307]
[1673389137996,43.29836876,1338.7,1338.6,0.02297307]
[1673389138828,39.95357233,1338.7,1338.6,0.02297307]
[1673389140065,32.48364233,1338.7,1338.6,0.02297307]
[1673389140486,35.82843876,1338.7,1338.6,0.02297307]
[1673389140701,25.01371233,1338.7,1338.6,0.02297307]
[1673389141448,25.01371233,1338.7,1338.6,0.02039937]
[1673389142979,27.7990803,1338.7,1338.6,0.02039937]
[1673389143152,35.2690103,1338.7,1338.6,0.02039937]
[1673389143723,27.7990803,1338.7,1338.6,0.02039937]
[1673389144823,35.2690103,1338.7,1338.6,0.02039937]
[1673389148387,50.4388703,1338.7,1338.6,0.02039937]
[1673389151386,47.65350233,1338.7,1338.6,0.02039937]
[1673389153915,27.7998611,1338.7,1338.6,0.02039937]
[1673389154067,27.79986048,1338.7,1338.6,0.02039937]
[1673389154961,35.26979048,1338.7,1338.6,0.02039937]
[1673389155275,42.17922048,1338.7,1338.6,0.02039937]
[1673389157594,54.63816476,1338.7,1338.6,0.02039937]
[1673389157811,54.86816476,1338.7,1338.6,0.02039937]
[1673389157957,54.86628986,1338.7,1338.6,0.02039937]
[1673389158302,51.52336833,1338.7,1338.6,0.02039937]
[1673389158515,51.5194643,1338.7,1338.6,0.02039937]
[1673389159136,54.10917026,1338.7,1338.6,0.02039937]
[1673389159483,59.86128927,1338.7,1338.6,0.02039937]
[1673389159698,59.86133049,1338.7,1338.6,0.02039937]
[1673389160058,56.5194643,1338.7,1338.6,0.02039937]
[1673389161444,59.86060409,1338.7,1338.6,0.02039937]
[1673389162173,55.99073809,1338.7,1338.6,0.02039937]
[1673389163315,59.86060409,1338.7,1338.6,0.02039937]
[1673389164644,80.74318634,1338.7,1338.6,0.02039937]
[1673389164804,80.73655884,1338.7,1338.6,0.01835944]
[1673389165316,90.52505884,1338.7,1338.6,0.01835944]
[1673389170286,90.52505884,1338.7,1338.6,9.44e-06]
[1673389173756,86.6279643,1338.7,1338.6,9.44e-06]
[1673389174161,90.52505884,1338.7,1338.6,9.44e-06]
[1673389174483,86.6279643,1338.7,1338.6,9.44e-06]
[1673389176484,89.96400118,1338.7,1338.6,9.44e-06]